fUST/lending_fUST_20241225
["ID","MTS","AMOUNT","RATE_DAILY","PERIOD"]
[346560272,1735087838358,-500.6499245,0.00013698,2]
[346560273,1735087838367,-500.0,0.00013698,2]
[346560274,1735087838376,-649.86,0.00013698,2]
[346560275,1735087838386,-264.24130868,0.00013698,2]
[346560276,1735087838395,-587.89,0.00013698,2]
[346560277,1735087838404,-500.0,0.00013698,2]
[346560278,1735087838413,-500.0,0.00013698,2]
[346560279,1735087838423,-500.0,0.00013698,2]
[346560280,1735087838432,-500.0,0.00013698,2]
[346560281,1735087838442,-500.0,0.00013698,2]
[346560282,1735087838451,-500.0,0.00013698,2]
[346560283,1735087838461,-500.0,0.00013698,2]
[346560284,1735087838471,-500.0,0.00013698,2]
[346560285,1735087838480,-923.94,0.00013698,4]
[346560286,1735087838490,-500.0,0.00013698,2]
[346560287,1735087838499,-500.0,0.00013698,2]
[346560288,1735087838508,-500.0,0.00013698,2]
[346560289,1735087838517,-500.0,0.00013698,2]
[346560290,1735087838527,-500.0,0.00013698,2]
[346560291,1735087838536,-500.0,0.00013698,2]
[346560292,1735087838546,-500.0,0.00013698,2]
[346560293,1735087838556,-1289.21,0.00013698,2]
[346560294,1735087838566,-500.0,0.00013698,2]
[346560295,1735087838575,-500.0,0.00013698,2]
[346560296,1735087838585,-536.19,0.00013698,2]
[346560297,1735087838594,-500.0,0.00013698,2]
[346560298,1735087838604,-586.0764986,0.00013698,2]
[346560299,1735087838613,-500.0,0.00013698,2]
[346560300,1735087838632,-500.0,0.00013698,2]
[346560301,1735087838643,-500.0,0.00013698,2]
[346560302,1735087838653,-500.0,0.00013698,2]
[346560303,1735087838663,-500.0,0.00013698,2]
[346560304,1735087838673,-909.09,0.00013698,2]
[346560305,1735087838683,-500.0,0.00013698,2]
[346560306,1735087838692,-500.0,0.00013698,2]
[346560307,1735087838702,-500.0,0.00013698,2]
[346560308,1735087838712,-500.0,0.00013698,2]
[346560309,1735087838722,-500.0,0.00013698,2]
[346560310,1735087838735,-500.0,0.00013698,2]
[346560311,1735087838745,-1345.83,0.00013698,2]
[346560312,1735087838755,-500.0,0.00013698,2]
[346560313,1735087838765,-870.4,0.00013698,2]
[346560314,1735087838777,-500.0,0.00013698,2]
[346560315,1735087838787,-505.69790269,0.00013698,2]
[346560316,1735087838797,-500.0,0.00013698,2]
[346560317,1735087838809,-500.0,0.00013698,2]
[346560318,1735087838819,-500.0,0.00013698,2]
[346560319,1735087838828,-500.0,0.00013698,2]
[346560320,1735087838838,-500.0,0.00013698,2]
[346560321,1735087838848,-155.16349085,0.00013698,2]
[346560322,1735087838857,-500.0,0.00013698,2]
[346560323,1735087838867,-500.0,0.00013698,2]
[346560324,1735087838876,-1352.62,0.00013698,2]
[346560325,1735087838887,-500.0,0.00013698,2]
[346560326,1735087838897,-500.0,0.00013698,2]
[346560327,1735087838907,-500.0,0.00013698,2]
[346560328,1735087838917,-500.0,0.00013698,2]
[346560329,1735087838926,-500.0,0.00013698,2]
[346560330,1735087838936,-500.0,0.00013698,2]
[346560331,1735087838945,-715.1,0.00013698,2]
[346560332,1735087838955,-786.4,0.00013698,2]
[346560333,1735087838965,-500.0,0.00013698,2]
[346560334,1735087838974,-500.0,0.00013698,2]
[346560335,1735087838984,-500.0,0.00013698,2]
[346560336,1735087838993,-500.0,0.00013698,2]
[346560337,1735087839003,-500.0,0.00013698,2]
[346560338,1735087839013,-1306.48,0.00013698,2]
[346560339,1735087839022,-500.0,0.00013698,2]
[346560340,1735087839031,-2595.03,0.00013698,2]
[346560341,1735087839041,-1275.24,0.00013698,2]
[346560342,1735087839050,-1430.82,0.00013698,2]
[346560343,1735087839060,-500.0,0.00013698,2]
[346560344,1735087839070,-500.0,0.00013698,2]
[346560345,1735087839080,-796.46,0.00013698,2]
[346560346,1735087839089,-699.09,0.00013698,2]
[346560347,1735087839099,-500.0,0.00013698,2]
[346560348,1735087839109,-500.0,0.00013698,2]
[346560349,1735087839119,-500.0,0.00013698,2]
[346560350,1735087839130,-753.74,0.00013698,2]
[346560351,1735087839139,-548.72,0.00013698,2]
[346560352,1735087839149,-793.79,0.00013698,2]
[346560353,1735087839159,-851.66,0.00013698,2]
[346560354,1735087839169,-500.0,0.00013698,2]
[346560355,1735087839179,-512.25603659,0.00013698,2]
[346560356,1735087839189,-500.0,0.00013698,2]
[346560357,1735087839199,-500.0,0.00013698,2]
[346560358,1735087839209,-505.24002864,0.00013698,2]
[346560359,1735087839219,-1461.07,0.00013698,2]
[346560360,1735087839229,-500.0,0.00013698,2]
[346560361,1735087839239,-500.0,0.00013698,2]
[346560362,1735087839249,-892.14,0.00013698,2]
[346560363,1735087839258,-660.25,0.00013698,2]
[346560364,1735087839268,-500.0,0.00013698,2]
[346560365,1735087839278,-500.0,0.00013698,2]
[346560366,1735087839287,-500.0,0.00013698,2]
[346560367,1735087839297,-500.0,0.00013698,2]
[346560368,1735087839307,-587.43,0.00013698,2]
[346560369,1735087839317,-500.0,0.00013698,2]
[346560370,1735087839327,-500.9927212,0.00013698,2]
[346560371,1735087839336,-500.0,0.00013698,2]
[346560372,1735087839346,-500.0,0.00013698,2]
[346560374,1735087839356,-500.0,0.00013698,2]
[346560375,1735087839365,-500.0,0.00013698,2]
[346560376,1735087839375,-500.0,0.00013698,2]
[346560377,1735087839384,-500.0,0.00013698,2]
[346560378,1735087839394,-500.0,0.00013698,2]
[346560379,1735087839403,-920.04,0.00013698,2]
[346560380,1735087839413,-591.4,0.00013698,2]
[346560381,1735087839423,-500.0,0.00013698,2]
[346560382,1735087839433,-500.0,0.00013698,2]
[346560383,1735087839443,-500.0,0.00013698,2]
[346560384,1735087839453,-632.4677721,0.00013698,2]
[346560385,1735087839462,-500.0,0.00013698,2]
[346560386,1735087839472,-500.0,0.00013698,2]
[346560388,1735087839482,-500.0,0.00013698,2]
[346560389,1735087839492,-500.0,0.00013698,2]
[346560390,1735087839502,-500.7160745,0.00013698,2]
[346560391,1735087839513,-500.0,0.00013698,2]
[346560392,1735087839523,-502.31641304,0.00013698,2]
[346560394,1735087839533,-500.0,0.00013698,2]
[346560396,1735087839543,-500.0,0.00013698,2]
[346560398,1735087839553,-500.0,0.00013698,2]
[346560400,1735087839562,-343.90595006,0.00013698,2]
[346560402,1735087839572,-500.0,0.00013698,2]
[346560404,1735087839584,-500.0,0.00013698,2]
[346560406,1735087839594,-521.92047922,0.00013698,2]
[346560408,1735087839604,-500.0,0.00013698,2]
[346560409,1735087839613,-501.50532547,0.00013698,2]
[346560411,1735087839623,-500.0,0.00013698,2]
[346560413,1735087839633,-502.68799304,0.00013698,2]
[346560415,1735087839643,-500.0,0.00013698,2]
[346560417,1735087839653,-7419.50895626,0.00013698,2]
[346560419,1735087839663,-287.03302768,0.00013698,2]
[346560422,1735087839672,-540.2042254,0.00013698,2]
[346560424,1735087839682,-500.0,0.00013698,2]
[346560426,1735087839693,-500.0,0.00013698,2]
[346560428,1735087839703,-593.52,0.00013698,2]
[346560430,1735087839714,-1518.36,0.00013698,2]
[346560432,1735087839724,-500.0,0.00013698,2]
[346560434,1735087839736,-729.61,0.00013698,2]
[346560436,1735087839745,-2534.75,0.00013698,2]
[346560438,1735087839755,-500.0,0.00013698,2]
[346560440,1735087839765,-500.0,0.00013698,2]
[346560442,1735087839775,-500.0,0.00013698,2]
[346560444,1735087839785,-500.0,0.00013698,2]
[346560446,1735087839795,-500.0,0.00013698,2]
[346560448,1735087839804,-1129.4,0.00013698,2]
[346560450,1735087839816,-500.36851855,0.00013698,2]
[346560452,1735087839826,-500.0,0.00013698,2]
[346560454,1735087839836,-503.81303686,0.00013698,2]
[346560456,1735087839846,-500.0,0.00013698,2]
[346560458,1735087839856,-500.0,0.00013698,2]
[346560460,1735087839866,-500.0,0.00013698,2]
[346560462,1735087839876,-500.0,0.00013698,2]
[346560465,1735087839885,-500.0,0.00013698,2]
[346560466,1735087839895,-289.18,0.00013698,2]
[346560468,1735087839905,-863.49,0.00013698,2]
[346560471,1735087839916,-845.35,0.00013698,2]
[346560473,1735087839925,-3070.88,0.00013698,2]
[346560474,1735087839934,-500.0,0.00013698,2]
[346560476,1735087839944,-500.0,0.00013698,2]
[346560479,1735087839954,-500.0,0.00013698,2]
[346560481,1735087839963,-727.28,0.00013698,2]
[346560483,1735087839973,-500.0,0.00013698,2]
[346560485,1735087839983,-500.0,0.00013698,2]
[346560487,1735087839992,-500.0,0.00013698,2]
[346560489,1735087840002,-500.0,0.00013698,2]
[346560491,1735087840012,-500.0,0.00013698,2]
[346560493,1735087840022,-928.41,0.00013698,2]
[346560495,1735087840031,-500.0,0.00013698,2]
[346560497,1735087840041,-325.39439527,0.00013698,2]
[346560499,1735087840050,-500.0,0.00013698,2]
[346560501,1735087840059,-500.0,0.00013698,2]
[346560503,1735087840069,-500.0,0.00013698,2]
[346560505,1735087840078,-500.0,0.00013698,2]
[346560507,1735087840087,-791.24,0.00013698,2]
[346560508,1735087840096,-500.0,0.00013698,2]
[346560511,1735087840106,-630.94541275,0.00013698,2]
[346560513,1735087840116,-500.0,0.00013698,2]
[346560515,1735087840125,-765.63,0.00013698,2]
[346560517,1735087840135,-500.0,0.00013698,2]
[346560519,1735087840147,-2063.59,0.00013698,2]
[346560521,1735087840156,-500.0,0.00013698,2]
[346560523,1735087840166,-415.21764096,0.00013698,2]
[346560525,1735087840176,-1195.0,0.00013698,2]
[346560527,1735087840186,-500.0,0.00013698,2]
[346560529,1735087840195,-500.0,0.00013698,2]
[346560552,1735087840395,-500.0,0.00013698,2]
[346560554,1735087840405,-3730.16,0.00013698,2]
[346560556,1735087840414,-500.0,0.00013698,2]
[346560558,1735087840425,-1322.86,0.00013698,2]
[346560560,1735087840435,-500.0,0.00013698,2]
[346560562,1735087840444,-500.0,0.00013698,2]
[346560564,1735087840454,-6101.19,0.00013698,2]
[346560566,1735087840463,-832.67,0.00013698,2]
[346560568,1735087840473,-500.0,0.00013698,2]
[346560570,1735087840482,-1484.81,0.00013698,2]
[346560572,1735087840491,-515.44,0.00013698,2]
[346560574,1735087840501,-500.0,0.00013698,2]
[346560576,1735087840510,-500.0,0.00013698,2]
[346560578,1735087840520,-500.0,0.00013698,2]
[346560580,1735087840530,-3876.87,0.00013698,2]
[346560582,1735087840539,-894.78,0.00013698,2]
[346560584,1735087840548,-500.0,0.00013698,2]
[346560586,1735087840557,-960.14,0.00013698,2]
[346560588,1735087840567,-500.0,0.00013698,2]
[346560590,1735087840575,-500.0,0.00013698,2]
[346560592,1735087840585,-2149.74,0.00013698,2]
[346560594,1735087840595,-2675.71,0.00013698,2]
[346560596,1735087840604,-500.0,0.00013698,2]
[346560598,1735087840613,-500.0,0.00013698,2]
[346560600,1735087840623,-1907.58,0.00013698,2]
[346560602,1735087840632,-500.0,0.00013698,2]
[346560604,1735087840642,-2470.91,0.00013698,2]
[346560606,1735087840651,-626.46,0.00013698,2]
[346560608,1735087840661,-500.0,0.00013698,2]
[346560610,1735087840671,-500.0,0.00013698,2]
[346560612,1735087840680,-1390.15,0.00013698,2]
[346560614,1735087840689,-500.0,0.00013698,2]
[346560616,1735087840699,-500.0,0.00013698,2]
[346560618,1735087840709,-1141.98,0.00013698,2]
[346560620,1735087840719,-678.35,0.00013698,2]
[346560622,1735087840728,-502.88776599,0.00013698,2]
[346560623,1735087840741,-2690.32,0.00013698,2]
[346560625,1735087840750,-500.0,0.00013698,2]
[346560626,1735087840759,-500.0,0.00013698,2]
[346560628,1735087840769,-1361.54,0.00013698,2]
[346560630,1735087840779,-912.11,0.00013698,2]
[346560631,1735087840788,-500.0,0.00013698,2]
[346560633,1735087840797,-958.53,0.00013698,2]
[346560635,1735087840809,-500.0,0.00013698,2]
[346560637,1735087840819,-1900.04,0.00013698,2]
[346560639,1735087840829,-500.0,0.00013698,2]
[346560641,1735087840838,-500.0,0.00013698,2]
[346560643,1735087840847,-500.0,0.00013698,2]
[346560645,1735087840857,-1286.54,0.00013698,2]
[346560647,1735087840866,-903.16,0.00013698,2]
[346560648,1735087840875,-687.14,0.00013698,2]
[346560649,1735087840885,-500.0,0.00013698,2]
[346560650,1735087840896,-500.0,0.00013698,2]
[346560651,1735087840905,-500.0,0.00013698,2]
[346560652,1735087840915,-1485.26,0.00013698,2]
[346560653,1735087840925,-500.0,0.00013698,2]
[346560655,1735087840934,-500.0,0.00013698,2]
[346560657,1735087840943,-3191.13,0.00013698,2]
[346560659,1735087840953,-1393.06,0.00013698,2]
[346560661,1735087840963,-1570.73,0.00013698,2]
[346560663,1735087840972,-1116.23,0.00013698,2]
[346560665,1735087840982,-500.0,0.00013698,2]
[346560667,1735087840992,-6055.39,0.00013698,2]
[346560669,1735087841001,-1115.61,0.00013698,2]
[346560671,1735087841011,-503.51739621,0.00013698,2]
[346560673,1735087841020,-500.0,0.00013698,2]
[346560675,1735087841029,-635.52,0.00013698,2]
[346560677,1735087841039,-500.0,0.00013698,2]
[346560679,1735087841048,-500.0,0.00013698,2]
[346560681,1735087841057,-500.0,0.00013698,2]
[346560683,1735087841067,-2443.87,0.00013698,2]
[346560685,1735087841076,-500.0,0.00013698,2]
[346560687,1735087841085,-500.0,0.00013698,2]
[346560689,1735087841095,-500.0,0.00013698,2]
[346560691,1735087841105,-500.0,0.00013698,2]
[346560693,1735087841114,-504.77009887,0.00013698,2]
[346560695,1735087841123,-1557.23,0.00013698,2]
[346560697,1735087841133,-500.0,0.00013698,2]
[346560699,1735087841143,-500.0,0.00013698,2]
[346560701,1735087841153,-506.72710269,0.00013698,2]
[346560703,1735087841162,-500.0,0.00013698,2]
[346560705,1735087841171,-576.28006964,0.00013698,2]
[346560707,1735087841181,-595.29,0.00013698,2]
[346560709,1735087841190,-791.58,0.00013698,2]
[346560711,1735087841200,-500.0,0.00013698,2]
[346560713,1735087841209,-500.0,0.00013698,2]
[346560715,1735087841219,-500.0,0.00013698,2]
[346560717,1735087841233,-500.0,0.00013698,2]
[346560719,1735087841243,-672.88,0.00013698,2]
[346560721,1735087841252,-797.33,0.00013698,2]
[346560723,1735087841262,-500.0,0.00013698,2]
[346560726,1735087841272,-500.0,0.00013698,2]
[346560728,1735087841281,-500.0,0.00013698,2]
[346560729,1735087841292,-501.49361282,0.00013698,2]
[346560731,1735087841301,-517.7198891,0.00013698,2]
[346560733,1735087841311,-1921.45,0.00013698,2]
[346560736,1735087841320,-500.0,0.00013698,2]
[346560738,1735087841330,-598.56,0.00013698,2]
[346560740,1735087841340,-28415.1,0.00013698,2]
[346560742,1735087841349,-500.0,0.00013698,2]
[346560744,1735087841359,-500.0,0.00013698,2]
[346560745,1735087841368,-499.0,0.00013698,2]
[346560747,1735087841377,-500.0,0.00013698,2]
[346560749,1735087841388,-731.87,0.00013698,2]
[346560751,1735087841397,-3389.22,0.00013698,2]
[346560753,1735087841406,-500.0,0.00013698,2]
[346560755,1735087841416,-2619.71,0.00013698,2]
[346560756,1735087841426,-415.55018543,0.00013698,2]
[346560757,1735087841435,-500.0,0.00013698,2]
[346560758,1735087841444,-500.0,0.00013698,2]
[346560759,1735087841454,-516.72346495,0.00013698,2]
[346560760,1735087841463,-1637.23,0.00013698,2]
[346560761,1735087841473,-1415.09,0.00013698,2]
[346560762,1735087841482,-500.0,0.00013698,2]
[346560763,1735087841491,-500.0,0.00013698,2]
[346560764,1735087841500,-3693.06,0.00013698,2]
[346560765,1735087841510,-500.0,0.00013698,2]
[346560766,1735087841519,-1597.51,0.00013698,2]
[346560767,1735087841528,-500.0,0.00013698,2]
[346560768,1735087841537,-500.0,0.00013698,2]
[346560769,1735087841547,-500.0,0.00013698,2]
[346560770,1735087841556,-500.0,0.00013698,2]
[346560772,1735087841565,-500.0,0.00013698,2]
[346560773,1735087841574,-500.0,0.00013698,2]
[346560775,1735087841584,-500.0,0.00013698,2]
[346560777,1735087841593,-500.0,0.00013698,2]
[346560779,1735087841603,-1599.96,0.00013698,2]
[346560781,1735087841612,-500.0,0.00013698,2]
[346560783,1735087841621,-500.0,0.00013698,2]
[346560785,1735087841631,-9869.99,0.00013698,2]
[346560787,1735087841641,-500.0,0.00013698,2]
[346560789,1735087841650,-4284.8,0.00013698,2]
[346560791,1735087841659,-500.0,0.00013698,2]
[346560793,1735087841668,-617.85341707,0.00013698,2]
[346560795,1735087841677,-19054.98,0.00013698,2]
[346560797,1735087841686,-500.0,0.00013698,2]
[346560799,1735087841695,-85530.41,0.00013698,2]
[346560801,1735087841704,-3676.17,0.00013698,2]
[346560803,1735087841713,-1584.2,0.00013698,2]
[346560805,1735087841723,-748.3,0.00013698,2]
[346560807,1735087841738,-678.59,0.00013698,2]
[346560809,1735087841749,-12963.32,0.00013698,2]
[346560811,1735087841759,-500.0,0.00013698,2]
[346560813,1735087841768,-2654.12,0.00013698,2]
[346560815,1735087841779,-799.05,0.00013698,2]
[346560817,1735087841789,-852.24,0.00013698,2]
[346560819,1735087841798,-500.0,0.00013698,2]
[346560821,1735087841808,-500.0,0.00013698,2]
[346560823,1735087841818,-688.44,0.00013698,2]
[346560825,1735087841827,-500.0,0.00013698,2]
[346560827,1735087841836,-730.2,0.00013698,2]
[346560829,1735087841846,-500.0,0.00013698,2]
[346560831,1735087841855,-722.42,0.00013698,2]
[346560833,1735087841865,-500.0,0.00013698,2]
[346560835,1735087841874,-500.0,0.00013698,2]
[346560837,1735087841884,-1698.39,0.00013698,2]
[346560839,1735087841893,-7040.7,0.00013698,2]
[346560841,1735087841902,-500.0,0.00013698,2]
[346560843,1735087841912,-500.0,0.00013698,2]
[346560845,1735087841921,-2369.65,0.00013698,2]
[346560847,1735087841930,-500.0,0.00013698,2]
[346560849,1735087841940,-605.683986,0.00013698,2]
[346560851,1735087841949,-500.0,0.00013698,2]
[346560853,1735087841959,-500.0,0.00013698,2]
[346560855,1735087841968,-500.0,0.00013698,2]
[346560857,1735087841977,-1020.65,0.00013698,2]
[346560859,1735087841986,-209.02396736,0.00013698,2]
[346560861,1735087841995,-500.0,0.00013698,2]
[346560863,1735087842004,-500.0,0.00013698,2]
[346560865,1735087842013,-1952.64,0.00013698,2]
[346560867,1735087842022,-1210.43,0.00013698,2]
[346560869,1735087842031,-501.2646946,0.00013698,2]
[346560871,1735087842040,-500.0,0.00013698,2]
[346560873,1735087842049,-21427.55,0.00013698,2]
[346560875,1735087842059,-1126.34,0.00013698,2]
[346560877,1735087842068,-500.0,0.00013698,2]
[346560879,1735087842077,-654.48,0.00013698,2]
[346560881,1735087842086,-638.36280813,0.00013698,2]
[346560883,1735087842096,-500.0,0.00013698,2]
[346560885,1735087842105,-4759.53,0.00013698,2]
[346560887,1735087842115,-500.0,0.00013698,2]
[346560889,1735087842124,-937.24,0.00013698,2]
[346560891,1735087842134,-500.0,0.00013698,2]
[346560893,1735087842144,-796.94,0.00013698,2]
[346560895,1735087842153,-830.25,0.00013698,2]
[346560897,1735087842163,-500.0,0.00013698,2]
[346560899,1735087842172,-3451.83,0.00013698,2]
[346560901,1735087842181,-500.0,0.00013698,2]
[346560903,1735087842190,-1264.51,0.00013698,2]
[346560905,1735087842200,-1664.97,0.00013698,2]
[346560907,1735087842210,-500.0,0.00013698,2]
[346560909,1735087842220,-1140.837603,0.00013699,2]
[346560912,1735087842230,-160.0,0.00013971,2]
[346560914,1735087842239,-500.0,0.00013972,2]
[346560915,1735087842248,-503.34026536,0.00013972,2]
[346560918,1735087842258,-500.0,0.00013972,2]
[346560919,1735087842267,-500.0,0.00013972,2]
[346560921,1735087842276,-500.0,0.00013972,2]
[346560924,1735087842286,-151.0,0.00013972,2]
[346560925,1735087842295,-151.0,0.00013972,2]
[346560928,1735087842304,-500.0,0.00013972,2]
[346560929,1735087842313,-500.0,0.00013972,2]
[346560931,1735087842323,-500.0,0.00013972,2]
[346560935,1735087842336,-500.0,0.00013972,2]
[346560937,1735087842346,-500.0,0.00013972,2]
[346560940,1735087842356,-500.0,0.00013972,2]
[346560942,1735087842366,-707.35,0.00013972,2]
[346560944,1735087842376,-500.0,0.00013972,2]
[346560946,1735087842386,-500.0,0.00013972,2]
[346560949,1735087842396,-918.19,0.00013972,2]
[346560952,1735087842405,-500.0,0.00013972,2]
[346560954,1735087842415,-500.0,0.00013972,2]
[346560956,1735087842424,-500.0,0.00013972,2]
[346560959,1735087842434,-1163.22,0.00013972,2]
[346560962,1735087842443,-500.0,0.00013972,2]
[346560965,1735087842452,-649.86,0.00013972,2]
[346560968,1735087842461,-151.0,0.00013972,2]
[346560970,1735087842470,-587.89,0.00013972,2]
[346560972,1735087842481,-500.0,0.00013972,2]
[346560974,1735087842490,-151.0,0.00013972,2]
[346560976,1735087842500,-500.0,0.00013972,2]
[346560978,1735087842509,-500.64,0.00013972,2]
[346560980,1735087842519,-923.94,0.00013972,4]
[346560982,1735087842528,-500.0,0.00013972,2]
[346560984,1735087842537,-500.0,0.00013972,2]
[346560986,1735087842547,-345.62656138,0.00013972,2]
[346560988,1735087842556,-1289.21,0.00013972,2]
[346560990,1735087842565,-500.0,0.00013972,2]
[346560992,1735087842575,-500.0,0.00013972,2]
[346560994,1735087842584,-536.19,0.00013972,2]
[346560996,1735087842593,-500.0,0.00013972,2]
[346560998,1735087842603,-500.0,0.00013972,2]
[346561000,1735087842613,-500.0,0.00013972,2]
[346561002,1735087842622,-500.0,0.00013972,2]
[346561004,1735087842631,-500.0,0.00013972,2]
[346561006,1735087842641,-909.09,0.00013972,2]
[346561008,1735087842651,-154.85573998,0.00013972,2]
[346561010,1735087842660,-500.0,0.00013972,2]
[346561012,1735087842670,-500.0,0.00013972,2]
[346561014,1735087842679,-500.0,0.00013972,2]
[346561016,1735087842688,-505.32492417,0.00013972,2]
[346561018,1735087842698,-500.0,0.00013972,2]
[346561020,1735087842707,-1345.83,0.00013972,2]
[346561022,1735087842717,-500.0,0.00013972,2]
[346561024,1735087842729,-870.4,0.00013972,2]
[346561026,1735087842742,-500.0220418,0.00013972,2]
[346561028,1735087842752,-326.93821731,0.00013972,2]
[346561030,1735087842762,-500.0,0.00013972,2]
[346561032,1735087842771,-500.0,0.00013972,2]
[346561034,1735087842782,-151.0,0.00013972,2]
[346561036,1735087842792,-151.0,0.00013972,2]
[346561038,1735087842802,-151.0,0.00013972,2]
[346561040,1735087842812,-500.0,0.00013972,2]
[346561042,1735087842821,-500.0,0.00013972,2]
[346561044,1735087842830,-500.0,0.00013972,2]
[346561046,1735087842840,-1352.62,0.00013972,2]
[346561048,1735087842849,-505.14388341,0.00013972,2]
[346561050,1735087842859,-500.0,0.00013972,2]
[346561052,1735087842868,-500.0,0.00013972,2]
[346561054,1735087842878,-500.0,0.00013972,2]
[346561056,1735087842887,-500.0,0.00013972,2]
[346561058,1735087842897,-715.1,0.00013972,2]
[346561060,1735087842907,-786.4,0.00013972,2]
[346561062,1735087842916,-500.0,0.00013972,2]
[346561064,1735087842926,-500.0,0.00013972,2]
[346561066,1735087842935,-500.0,0.00013972,2]
[346561068,1735087842944,-1306.48,0.00013972,2]
[346561070,1735087842953,-500.0,0.00013972,2]
[346561072,1735087842962,-2595.03,0.00013972,2]
[346561074,1735087842972,-1275.24,0.00013972,2]
[346561076,1735087842983,-1430.82,0.00013972,2]
[346561078,1735087842993,-500.0,0.00013972,2]
[346561080,1735087843002,-500.0,0.00013972,2]
[346561082,1735087843012,-796.46,0.00013972,2]
[346561084,1735087843021,-699.09,0.00013972,2]
[346561086,1735087843031,-500.0,0.00013972,2]
[346561088,1735087843040,-500.0,0.00013972,2]
[346561090,1735087843051,-151.0,0.00013972,2]
[346561092,1735087843060,-151.0,0.00013972,2]
[346561094,1735087843069,-151.0,0.00013972,2]
[346561096,1735087843079,-500.0,0.00013972,2]
[346561098,1735087843089,-753.74,0.00013972,2]
[346561100,1735087843099,-548.72,0.00013972,2]
[346561102,1735087843108,-793.79,0.00013972,2]
[346561104,1735087843117,-851.66,0.00013972,2]
[346561106,1735087843127,-262.56,0.00013972,2]
[346561108,1735087843137,-500.0,0.00013972,2]
[346561110,1735087843147,-500.0,0.00013972,2]
[346561112,1735087843158,-1461.07,0.00013972,2]
[346561114,1735087843168,-500.0,0.00013972,2]
[346561116,1735087843177,-157.56377524,0.00013972,2]
[346561118,1735087843187,-892.14,0.00013972,2]
[346561120,1735087843197,-660.25,0.00013972,2]
[346561122,1735087843205,-500.0,0.00013972,2]
[346561124,1735087843215,-519.19840001,0.00013972,2]
[346561126,1735087843225,-505.31323867,0.00013972,2]
[346561128,1735087843234,-500.0,0.00013972,2]
[346561130,1735087843244,-587.43,0.00013972,2]
[346561132,1735087843255,-500.0,0.00013972,2]
[346561134,1735087843264,-500.0,0.00013972,2]
[346561136,1735087843274,-500.0,0.00013972,2]
[346561138,1735087843283,-500.0,0.00013972,2]
[346561140,1735087843293,-500.0,0.00013972,2]
[346561142,1735087843303,-500.0,0.00013972,2]
[346561144,1735087843312,-920.04,0.00013972,2]
[346561146,1735087843322,-500.0,0.00013972,2]
[346561148,1735087843331,-500.0,0.00013972,2]
[346561150,1735087843340,-500.0,0.00013972,2]
[346561165,1735087843474,-151.0,0.00013972,2]
[346561167,1735087843485,-151.0,0.00013972,2]
[346561169,1735087843494,-151.0,0.00013972,2]
[346561171,1735087843503,-500.0,0.00013972,2]
[346561173,1735087843512,-500.0,0.00013972,2]